Cogmind - Beta 11.1 @@@ ROGUE MODE // 2022.05.23 @ 18:41:20 Player: Exp. Geonium Core Result: Destroyed by D-53 Grenadier with Mini Grenade Launcher Performance ------------- Evolutions (0) 0 Regions Visited (2) 400 Robots Destroyed (30) 150 Value Destroyed (581) 581 Prototype IDs (0) 0 Alien Tech Used (0) 0 Bonus (0) 0 TOTAL SCORE: 1131 Bonus ------- None Cogmind --------- Core Integrity 0/250 Matter 300/300 Energy 159/160 System Corruption 0% Temperature Cool (0) Movement Rolling (140) Ox4 Location -10/Mines Parts ------- > --- POWER (1) -------- Light Nuclear Core > --- PROPULSION (2) --- Wheel > --- UTILITY (2) ------ High-capacity Storage Unit Signal Interpreter > --- WEAPON (2) ------- Assault Rifle > --- INVENTORY (20) --- Ion Engine Light Treads Light Treads Light Treads Light Treads Light Treads Light Treads Light Treads Wheel Improved Heat Sink Small Storage Unit High-capacity Matter Pod (200) High-capacity Matter Pod (130) High-capacity Matter Pod (0) Light Armor Plating Light Armor Plating Assault Rifle Light Assault Rifle Grenade Launcher Grenade Launcher Peak State ------------ > --- POWER ------------ Light Nuclear Core > --- PROPULSION ------- Aluminum Leg Aluminum Leg > --- UTILITY ---------- Improved Heat Sink Small Storage Unit > --- WEAPON ----------- Assault Rifle Assault Rifle > --- INVENTORY -------- Ion Engine Aluminum Leg Aluminum Leg Compact Wheel Assault Rifle Assault Rifle Assault Rifle Light Assault Rifle [Rating: 11] Favorites ----------- Power Light Nuclear Core Engine Ion Engine Power Core Light Nuclear Core Propulsion Light Treads Treads Light Treads Leg Aluminum Leg Wheel Wheel Utility High-capacity Storage Unit Device Heat Sink Storage High-capacity Storage Unit Processor Signal Interpreter Weapon Assault Rifle Energy Gun EM Pulse Gun Ballistic Gun Assault Rifle Build | -11 -10 -10 ------- Run | Scr Mat Min Slots Evolved . | . . . Power . | . . . Propulsion . | . . . Utility . | . . . Weapon . | . . . Parts Attached 40 | 3 34 3 Power 4 | . 3 1 Engine 2 | . 2 . Core 2 | . 1 1 Reactor . | . . . Propulsion 20 | 2 16 2 Treads 11 | 2 9 . Leg 2 | . 2 . Wheel 7 | . 5 2 Hover . | . . . Flight . | . . . Utility 6 | . 6 . Device 2 | . 2 . Storage 3 | . 3 . Processor 1 | . 1 . Hackware . | . . . Protection . | . . . Artifact . | . . . Weapon 10 | 1 9 . Energy Gun 3 | . 3 . Energy Cannon . | . . . Ballistic Gun 7 | 1 6 . Ballistic Cannon . | . . . Launcher . | . . . Special Weapon . | . . . Impact Weapon . | . . . Slashing Weapon . | . . . Piercing Weapon . | . . . Special Melee Weapon . | . . . Unidentified Prototypes . | . . . Parts Lost 3 | . 1 2 Power . | . . . Propulsion 2 | . 1 1 Utility . | . . . Weapon 1 | . . 1 Highest Loss Streak 2 | . 1 2 To Critical Strikes . | . . . Average Slot Usage (%) 95 | . 94 99 Engine 2 | . 3 . Core 11 | . 10 14 Treads 13 | . 14 13 Leg 1 | . 1 . Wheel 12 | . 11 14 Device 1 | . 1 . Storage 14 | . 14 14 Processor 10 | . 9 14 Energy Gun 1 | . 1 . Ballistic Gun 26 | . 25 28 Naked Turns . | . . . Heaviest Build 50 | 14 50 49 Greatest Support 40 | 40 40 20 Greatest Overweight (x) 4 | . 4 4 Average Overweight (x) 3 | . 2 3 Largest Inventory Capacity 20 | 8 20 20 Average Capacity 17 | 8 16 20 Most Carried 20 | 7 20 20 Average Carried 16 | 6 14 20 Final Capacity 20 | 8 20 20 Final Carried 20 | 6 20 20 Class Distribution -------------------- 87% | Mutant 12% | Scavenger-Mutant Dominant Class ---------------- Mutant | -10/Materials Mutant | -10/Mines Resources | -11 -10 -10 ----------- Run | Scr Mat Min Matter Collected 1443 | 190 1040 213 Remotely . | . . . Salvage Created 1103 | . 929 174 Parts 73 | . 59 14 Haulers Intercepted 2 | . 2 . Recyclers Shooed 3 | . 2 1 Parts Field Recycled . | . . . Retrieved Matter . | . . . Parts Self-Destructed . | . . . Prevented . | . . . Kills | -11 -10 -10 ------- Run | Scr Mat Min Combat Hostiles Destroyed 15 | . 13 2 Guns 15 | . 13 2 Classes Destroyed 8 | . 7 1 Worker 4 | . 2 2 Builder 3 | . 2 1 Tunneler 1 | . . 1 Hauler 2 | . 2 . Recycler 3 | . 3 . Watcher 2 | . 2 . Swarmer 2 | . 2 . Grunt 13 | . 11 2 Best Kill Streak 6 | . 6 4 Combat Bots Only 4 | . 4 2 Max Kills in Single Turn 2 | . 2 2 Gunslinging 1 | . 1 . Exploded . | . . . Melee . | . . . Uniques/NPCs Destroyed . | . . . Combat | -11 -10 -10 -------- Run | Scr Mat Min Damage Taken 1007 | . 612 395 Core 256 | . 136 120 Absorbed by Shields . | . . . Core Remaining (%) 100 | 100 . . Volleys Fired 98 | . 87 11 Largest 2 | . 2 2 Hottest 60 | . 60 40 Shots Fired 189 | . 167 22 Gun 189 | . 167 22 Cannon . | . . . Launcher . | . . . Special . | . . . Kinetic 176 | . 154 22 Thermal . | . . . Explosive . | . . . Electromagnetic 13 | . 13 . Robot Hit Streak 13 | . 13 6 Robot Miss Streak 4 | . 4 4 Penetration Max . | . . . Secondary Targets 2 | . 2 . Max Gunslinging Chain 1 | . 1 . Shots Hit Robots 117 | . 106 11 Core Hits 50 | . 41 9 Critical Kills 2 | . 1 1 Critical Parts Destroyed . | . . . Critical Strikes 3 | . 2 1 Destroy 2 | . 1 1 Corrupt 1 | . 1 . Melee Attacks . | . . . Impact . | . . . Slashing . | . . . Piercing . | . . . Sneak Attacks . | . . . Combat Hostiles . | . . . Follow-up Attacks . | . . . Damage Inflicted 1549 | . 1404 145 Guns 1477 | . 1332 145 Cannons . | . . . Explosions 72 | . 72 . Melee . | . . . Ramming . | . . . Kinetic 1346 | . 1201 145 Thermal 72 | . 72 . Explosive . | . . . Electromagnetic 131 | . 131 . Impact . | . . . Slashing . | . . . Piercing . | . . . Highest Corruption . | . . . Average Corruption . | . . . Corruption Purged . | . . . Corruption Blocked . | . . . Overload Shots . | . . . Overflow Damage 7 | . 7 . Projectiles . | . . . Explosions 7 | . 7 . Melee . | . . . Knockbacks . | . . . Impact . | . . . Kinetic . | . . . Secondary . | . . . Self-Inflicted Damage . | . . . Shots . | . . . Rammed . | . . . Targets Rammed . | . . . Kicked . | . . . Crushed . | . . . Highest Temperature 30 | . 30 4 Average Temperature 8 | . 9 2 Received Heat Transfer 344 | . 276 68 Siege Activations . | . . . Robots Corrupted . | . . . Combat Hostiles . | . . . Parts Fried . | . . . Impact Corruptions . | . . . Robots Melted . | . . . Combat Hostiles . | . . . Parts Melted . | . . . Heat Transferred 100 | . 100 . Parts Sabotaged . | . . . Parts Stolen . | . . . Parts Stripped . | . . . Power Chain Reactions 1 | . 1 . Missiles Intercepted . | . . . Alert | -11 -10 -10 ------- Run | Scr Mat Min Peak Influence 371 | . 371 109 Initial 39 | . . 39 Average 150 | . 181 74 Maximum Alert Level 1 | . 1 . Low Security (%) 64 | 100 50 100 Level 1 35 | . 49 . Level 2 . | . . . Level 3 . | . . . Level 4 . | . . . Level 5 . | . . . High Security . | . . . Max Security . | . . . Squads Dispatched 3 | . 3 . Investigation 2 | . 2 . Extermination . | . . . Reinforcement 1 | . 1 . Assault . | . . . Garrison . | . . . Intercept . | . . . Searches Triggered . | . . . Construction Impeded . | . . . Haulers Reinforced . | . . . Active Scanning Responses . | . . . Cargo Convoy Interrupts . | . . . Stealth | -11 -10 -10 --------- Run | Scr Mat Min Distress Signals . | . . . Communications Jammed . | . . . Distress Signals . | . . . Times Spotted 42 | . 29 13 Peak Tracking Total 11 | . 5 11 Tactical Retreats 2 | . 2 . Traps | -11 -10 -10 ------- Run | Scr Mat Min Traps Triggered 6 | . 6 . Indirectly . | . . . Trap Hack Attempts . | . . . Triggered . | . . . Disarmed . | . . . Reprogrammed . | . . . Reused . | . . . Traps Extracted . | . . . Installed . | . . . Triggered . | . . . Machines | -11 -10 -10 ---------- Run | Scr Mat Min Machines Disabled . | . . . Max in Single Turn . | . . . Machines Sabotaged . | . . . Garrisons Compromised . | . . . Overloaded Fab Kills . | . . . Hacking | -11 -10 -10 --------- Run | Scr Mat Min Machines Accessed 7 | . 7 . Terminals 7 | . 7 . Fabricators . | . . . Repair Stations . | . . . Recycling Units . | . . . Scanalyzers . | . . . Garrison Access . | . . . Total Hacks 30 | . 30 . Successful 13 | . 13 . Failed 17 | . 17 . Catastrophic 4 | . 4 . Database Lockouts . | . . . Manual 22 | . 22 . Terminals 30 | . 30 . Fabricators . | . . . Repair Stations . | . . . Recycling Units . | . . . Scanalyzers . | . . . Garrison Access . | . . . Terminal Hacks 7 | . 7 . Terminal Index 1 | . 1 . Maintenance Status 1 | . 1 . Transport Status 1 | . 1 . Recall Investigation 1 | . 1 . Registered Components 1 | . 1 . Zone Layout 2 | . 2 . Fabricator Hacks . | . . . Repair Station Hacks . | . . . Recycling Unit Hacks . | . . . Scanalyzer . | . . . Garrison Access Hacks . | . . . Unauthorized Hacks 6 | . 6 . Terminals 6 | . 6 . Botnet 5 | . 5 . Operators 1 | . 1 . Fabricators . | . . . Repair Stations . | . . . Recycling Units . | . . . Scanalyzers . | . . . Garrison Access . | . . . Data Cores Recovered . | . . . Used . | . . . Hacking Detections 7 | . 7 . Full Trace Events 1 | . 1 . Feedback Events . | . . . Feedback Blocked . | . . . Robot Schematics Acquired . | . . . Robots Built . | . . . Authchips . | . . . Time . | . . . Total Robot Build Rating . | . . . Part Schematics Acquired . | . . . Parts Built . | . . . Authchips . | . . . Time . | . . . Total Part Build Rating . | . . . Parts Repaired . | . . . Time . | . . . Parts Recycled . | . . . Recycled Matter . | . . . Retrieved Matter . | . . . Retrieved Components . | . . . Parts Scanalyzed . | . . . Part Schematics Acquired . | . . . Parts Damaged . | . . . Bothacking | -11 -10 -10 ------------ Run | Scr Mat Min Used RIF Installer . | . . . Robots Hacked . | . . . Non-combat . | . . . Combat . | . . . Robot Hacks Applied . | . . . Relay Couplers Released . | . . . Fabnet Peak Effective % . | . . . Robots Rewired . | . . . Allies Hacked . | . . . Hacks Repelled . | . . . Allies | -11 -10 -10 -------- Run | Scr Mat Min Total Allies . | . . . Largest Group . | . . . Highest-Rated Group . | . . . Highest-Rated Ally . | . . . Total Orders . | . . . Ally Attacks . | . . . Total Damage . | . . . Kills . | . . . Allies Corrupted . | . . . Allies Melted . | . . . Intel | -11 -10 -10 ------- Run | Scr Mat Min Robot Analysis Total . | . . . Derelict Logs Recovered 2 | . . 2 Drone Launches . | . . . Drone Recoveries . | . . . Exploration | -11 -10 -10 ------------- Run | Scr Mat Min Turns Passed 1761 | 5 1256 500 Spaces Moved 1015 | 1 683 331 Core 4 | . 4 . Treads 58 | 1 57 . Legs 12 | . 12 . Wheels 941 | . 610 331 Hover . | . . . Flight . | . . . Fastest Speed 80 | 160 80 110 Average Speed 135 | 160 132 139 Slowest Speed 320 | 160 320 140 Overloaded Moves . | . . . Propulsion Burnouts . | . . . Robots Hopped . | . . . Cave-ins Triggered . | . . . Exploration Rate (%) 51 | 2 90 63 Regions Visited 2 Branch Regions 1 Pre-discovered Areas . | . . . Known Exits Taken 1 | . 1 . Unknown Exits Taken 1 | 1 . . Scrap Searched 1 | . . 1 Spaces Dug . | . . . Terrain Destroyed 2 | . 2 . Melee . | . . . Projectile . | . . . AOE 2 | . 2 . Terrain Rammed . | . . . Walls Destroyed . | . . . Machines Disabled . | . . . Actions | -11 -10 -10 --------- Run | Scr Mat Min Total 1216 | 5 864 347 Wait 15 | . 15 . Move 1013 | . 682 331 Hop . | . . . Pick Up 25 | . 25 . Fast Attach 15 | . 15 . Attach 7 | 2 5 . Detach 4 | 2 2 . Swap 18 | 1 14 3 Drop 21 | . 19 2 Fire 98 | . 87 11 Melee . | . . . Ram . | . . . Kick . | . . . Crush . | . . . Escape Stasis . | . . . Rewire . | . . . Trap . | . . . Miscellaneous . | . . . Route ------- -11/Scrapyard -10/Materials (discovered 4 exits: *Mat x3 / *Min) -10/Mines (discovered 2 exits: *Mat x2) History --------- Turn | Location | Event 6 | -11/Scrapyard | Discovered new exit (range 0) 6 | -11/Scrapyard | Entered Materials 173 | -10/Materials | Discovered new exit (range 8) 303 | -10/Materials | Build established: Mutant 510 | -10/Materials | Discovered new exit (range 12) 526 | -10/Materials | Discovered new exit (range 16) 720 | -10/Materials | Identified exit to Materials 895 | -10/Materials | Core integrity fell below 50% 1012 | -10/Materials | Discovered exit to Materials (range 11) 1260 | -10/Materials | Identified exit to Mines 1262 | -10/Materials | Entered Mines 1310 | -10/Mines | Learned 4 Materials zone layouts 1323 | -10/Mines | Discovered exit to Materials (range 8) 1567 | -10/Mines | Discovered exit to Materials (range 10) 1721 | -10/Mines | Assembled infested the area 1751 | -10/Mines | Core integrity fell below 20% 1762 | -10/Mines | Destroyed by D-53 Grenadier with Mini Grenade Launcher Last Messages --------------- defend their interests would be to start expanding in this direction." 01721_ ALERT: Infestation in the mines, dispatching Demolisher response squad. 01748_ C-30 ARC bursts open, deploying its payload. 01748_ D-53 Grenadier unfolds itself. 01749_ U-05 Engineer suffers critical hit (Burn). 01750_ U-05 Engineer heat damages core (-2). 01750_ Wheel destroyed. 01756_ The unstable cave ceiling collapses. 01756_ as-22887 destroyed. 01756_ as-96502 destroyed. 01756_ Laser Drill disabled. 01757_ as-39868 destroyed. 01758_ as-34497 destroyed. 01759_ K-01 Serf destroyed. 01762_ as-48052 destroyed. 01762_ as-10137 destroyed. 01762_ as-67655 destroyed. 01762_ as-20205 destroyed. 01762_ Assault Rifle destroyed. Map ----- +----------------------------------------------------+ | """ ## #???????????????# #????? ?????????? | | """ ## #???????????????# #????# ???????????? | | """ #???????????????# #??## #????????????? | | """ ####???????????????# #?## #????????????? | | #????????????????### ### ##???????????? | | #????????????????# ## #????????? | | #????????????????# #????????? | | #####????????????????## #### #????????? | | ??????????????????????##???# ### ####?????????? | | ??????????????????????????## ##?# #????????##### | | ??????????????????????????# ##??# #???????## # | | ?????????????????????###### ##### ######### | | ?????????????????????# =! | |## | | ?????????????????????# ##### ############=## ## | | ???????????????????????????###??????????# ## ### | | ????????????????????????????????# # ##!##! ## | | ??????????????????????????????# !![ = ### | | ?????????????????????????????# ##### #?# | | ??????????????????????????? #????# #?# | | ????????????????????????????# ? ##?????# #?# | | ??????????????????????????????? ???????? #?? | | ?????????????????????????##### ####???????# ##?? | | ????????????????????????## ### # ###?????# ##??? | | ?????????????? ????????## #####?##????? | | ??????????????? ???????# ##??##### | | ???????????????? ????## @ # #### # | | ?????????????????? #### | | ????????????????? | | ????????????????# " %% " # | | ????????????????####### % a d "%" ### | | ???????????? d ### ##?? | | ??????????????????###### % ##?## #??? | | ???????????????????????# #####???## #??? | | ???????????????????###### ## #????????# #??# | | ???????????????????# ## ##?##???????## #### | | ???????????????????# #??????????# ## | | ???????????????????## ## #?????????# | | ???????????????????## #### #????????## | | ??????????????????## #??## ##???????## ### | | ???????????????#### ##??#####???###### ###?# | | ??????????????## #?????????## ## ###???? | | ??????????????# #?????????# ##?????? | | ??????????????# ##?????????## ##??????? | | ??????????????## #???????????#######???????? | | ???????????????# #?????????????????????????? | | ???????????????# ????????#####????????????? | | ??????????????# ???????## ##??####?????? | | ????????????? ?????## #?## ##????? | | ???????????? #????## ### #????? | | ???????????### ###### ###### | +----------------------------------------------------+ Best States ------------- Heat Dissipation 39 Energy Generation 14 Energy Capacity 250 Matter Stores 300 Matter Capacity 300 Sight Range 16 Terrain Scan Density 10 Evasion (%) 45 Recoil Reduction 2 Item Schematics ----------------- None Robot Schematics ------------------ None Fabricated ------------ Nothing Alien Tech Used ----------------- None Achievements -------------- None Challenges ------------ None Game ------ Seed ForceThiefDriver Manual? 0 Play Time 00:20:47 Cumulative 154.5 hours Start 2022.05.23 @ 18:05:28 End 2022.05.23 @ 18:41:20 Sessions 1 Manual Loads 0 Difficulty Rogue Special Mode None Game No. 242 Rogue 242 Adventurer 0 Explorer 0 Win Type - Total 9 Types 7/0/1/1/0/0/0/0/0 Lore% 50 Gallery% 72 Achievement% 62 Wizard Run 0 Options --------- ASCII 0 Keyboard 0 Movement Numpad Keybinds 0 Fullscreen 1 Font 18/Terminus Map View 76x50 Tactical HUD 1 Map Filters NONE Filters NONE Steam 1 RUN: 1a531401-d606-4854-80d2-b06ad797d706